Workbook

Sheet Sheet1
B2: CROSS YÖNTEMİ (inş.müh. Gürcan BERBEROĞLU tel:0532 366 02 04 www.betoncelik.com )
M3: I = atalet momenti | AP3: Dikkat sadece sarı hücrelere data girilecek.
M4: E = elastisite modülü | AD4: =IF(OR(M5=0,M5="",V5=0,V5="",X6=0,X6="",AD5=0,AD5="",AH5=0,AH5="",AR5=0,AR5=""),"Konsol kiriş hariç tüm yüklere data girmek mecburidir.","") -> 
E5: 4 | G5: KN | M5: 25 | O5: KN/m | V5: 25 | X5: KN | Z5: =+V5 -> 25 | AB5: KN | AD5: 5 | AF5: KN/m | AH5: 10 | AJ5: KN | AR5: 35 | AT5: KN
G6: 3.5 | I6: KN/m | X6: 4 | Z6: KN/m
BN7: Not : birim deplasman sabitlerinde çubuk ankastre ise (4 * E * I / L) alınır.Sabit menetli ise (3 * E * I / L) alınır.
I9: a | L9: I= | M9: 1 | S9: b | V9: I= | W9: 1 | AC9: c | AF9: I= | AG9: 1 | AM9: d | AP9: I= | AQ9: 1 | AW9: e
L10: E= | M10: 1 | V10: E= | W10: 1 | AF10: E= | AG10: 1 | AP10: E= | AQ10: 1
G11: 1 | I11: m | N11: 4 | P11: m | T11: 1.5 | V11: m | X11: 3 | Z11: m | AA11: =+T11 -> 1.5 | AC11: m | AE11: 2.5 | AG11: m | AJ11: 3 | AL11: m | AO11: 2 | AQ11: m | AT11: 3.5 | AV11: m
X13: =+T11+X11+AA11 -> 6 | Z13: m | AH13: =+AE11+AJ11 -> 5.5 | AJ13: m | AR13: =+AO11+AT11 -> 5.5 | AT13: m
C15: birim deplasman sabitleri | AG15: dağıtma sayıları | BN15: Not: Konsol kiriş hariç tüm açıklıklarda sarı hücrelere data girmek mecburidir.
C16: a-b çubuğu | H16: 3 * E * I / L = | L16: 3 | M16: * | N16: =+M10 -> 1 | P16: * | Q16: =+M9 -> 1 | S16: / | T16: =+N11 -> 4 | V16: = | W16: =+L16*N16*Q16/T16 -> 0.75 | AG16: rba = | AI16: =+W16 -> 0.75 | AK16: /( | AL16: =+AI16 -> 0.75 | AN16: + | AO16: =+W17 -> 0.6666666667 | AQ16: )= | AR16: =AI16/(AL16+AO16) -> 0.5294117647 | BN16: Anormal datalar girmeyiniz.
C17: b-c çubuğu | H17: 4 * E * I / L = | L17: 4 | M17: * | N17: =+W10 -> 1 | P17: * | Q17: =+W9 -> 1 | S17: / | T17: =+T11+X11+AA11 -> 6 | V17: = | W17: =+L17*N17*Q17/T17 -> 0.6666666667 | AG17: rbc = | AI17: =+W17 -> 0.6666666667 | AK17: /( | AL17: 0.6666666667 | AN17: + | AO17: =+W16 -> 0.75 | AQ17: )= | AR17: 0.4705882353
C18: c-d çubuğu | H18: 4 * E * I / L = | L18: 4 | M18: * | N18: =+AG10 -> 1 | P18: * | Q18: =+AG9 -> 1 | S18: / | T18: =+AE11+AJ11 -> 5.5 | V18: = | W18: 0.7272727273 | AG18: rcb = | AI18: =+W17 -> 0.6666666667 | AK18: /( | AL18: 0.6666666667 | AN18: + | AO18: =+W18 -> 0.7272727273 | AQ18: )= | AR18: 0.4782608696
C19: d-e çubuğu | H19: 4 * E * I / L = | L19: 4 | M19: * | N19: =+AQ10 -> 1 | P19: * | Q19: =+AQ9 -> 1 | S19: / | T19: =+AO11+AT11 -> 5.5 | V19: = | W19: 0.7272727273 | AG19: rcd = | AI19: =+W18 -> 0.7272727273 | AK19: /( | AL19: 0.7272727273 | AN19: + | AO19: =+W17 -> 0.6666666667 | AQ19: )= | AR19: 0.5217391304
C20: ankastrelik momentleri | AG20: rdc = | AI20: =+W18 -> 0.7272727273 | AK20: /( | AL20: 0.7272727273 | AN20: + | AO20: =+W19 -> 0.7272727273 | AQ20: )= | AR20: 0.5
C21: konsol kiriş | AG21: rde = | AI21: =+W19 -> 0.7272727273 | AK21: /( | AL21: 0.7272727273 | AN21: + | AO21: =+W18 -> 0.7272727273 | AQ21: )= | AR21: 0.5
C22: Mk = | E22: =+E5 -> 4 | G22: * | H22: =+G11 -> 1 | J22: + | K22: =+G6 -> 3.5 | M22: * | N22: =+G11 -> 1 | P22: * | Q22: =+G11 -> 1 | S22: / | T22: 2 | U22: = | V22: =+E22*H22+K22*N22*Q22/T22 -> 5.75 | Y22: KNm | AM22: hiperstatiklik derecesi
C23: - Mba = | F23: =-M5 -> -25 | H23: * | I23: =+N11 -> 4 | K23: ²/ | L23: 8 | M23: = | N23: =F23*I23^2/L23 -> -50 | Q23: KNm | AM23: d= | AN23: 5 | AO23: adet | AQ23: (düğüm noktası sayısı)
C24: Mbc = -Mcb = | G24: =+X6 -> 4 | I24: * | J24: =+T11+X11+AA11 -> 6 | L24: ²/ | M24: 12 | N24: +( | O24: =+V5 -> 25 | Q24: * | R24: =T11 -> 1.5 | T24: *( | U24: =(T11+X11+AA11) -> 6 | W24: - | X24: =+T11 -> 1.5 | Z24: ))/ | AA24: =+U24 -> 6 | AC24: = | AD24: =+G24*J24^2/M24+(O24*R24*(U24-X24))/AA24 -> 40.125 | AG24: KNm | AM24: r= | AN24: 8 | AO24: adet | AQ24: (mesnet tepkisi sayısı)
C25: Mcd = | E25: =+AD5 -> 5 | G25: * | H25: =+AE11+AJ11 -> 5.5 | J25: ²/ | K25: 12 | L25: + | M25: =+AH5 -> 10 | O25: * | P25: =+AE11 -> 2.5 | R25: * | S25: =+AJ11 -> 3 | U25: ²/ | V25: =+AE11+AJ11 -> 5.5 | X25: ² | Y25: = | Z25: =E25*H25^2/K25+M25*P25*S25^2/V25^2 -> 20.0421832 | AC25: KNm | AM25: ç= | AN25: 4 | AO25: adet | AQ25: (çubuk sayısı)
C26: - Mdc = | F26: =-AD5 -> -5 | H26: * | I26: =+AE11+AJ11 -> 5.5 | K26: ²/ | L26: 12 | M26: - | N26: =+AH5 -> 10 | P26: * | Q26: =+AJ11 -> 3 | S26: * | T26: =+AE11 -> 2.5 | V26: ²/ | W26: =+AE11+AJ11 -> 5.5 | Y26: ² | Z26: = | AA26: =F26*I26^2/L26-N26*Q26*T26^2/W26^2 -> -18.80251377 | AD26: KNm | AM26: h = 3 * ( ç - d ) + r
C27: Mde = | E27: =+AR5 -> 35 | G27: * | H27: =+AO11 -> 2 | J27: * | K27: =+AT11 -> 3.5 | M27: ²/ | N27: =+AO11+AT11 -> 5.5 | P27: ² | Q27: = | R27: =E27*H27*K27^2/N27^2 -> 28.34710744 | U27: KNm | AM27: h= | AN27: 3 | AO27: *( | AP27: =+AN25 -> 4 | AQ27: - | AR27: =+AN23 -> 5 | AS27: )+ | AT27: =+AN24 -> 8 | AU27: = | AV27: =+AN27*(AP27-AR27)+AT27 -> 5 | AW27: (hiperstatiklik derecesi)
C28: - Med = | F28: =-AR5 -> -35 | H28: * | I28: =+AT11 -> 3.5 | K28: * | L28: =+AO11 -> 2 | N28: ²/ | O28: =+AO11+AT11 -> 5.5 | Q28: ² | R28: = | S28: =F28*I28*L28^2/O28^2 -> -16.19834711 | V28: KNm | AM28: =IF(AV27<0,"labil sistem.",IF(AV27=0,"izostatik sistem.","")) -> 
O30: =+AR16 -> 0.5294117647 | R30: =+AR17 -> 0.4705882353 | Y30: =+AR18 -> 0.4782608696 | AB30: =+AR19 -> 0.5217391304 | AI30: =+AR20 -> 0.5 | AL30: =+AR21 -> 0.5
G31: a | Q31: b | AA31: c | AK31: d | AU31: e
E33: =-V22 -> -5.75 | H33: =+V22 -> 5.75 | O33: =+N23 -> -50 | R33: =+AD24 -> 40.125 | Y33: =-AD24 -> -40.125 | AB33: =+Z25 -> 20.0421832 | AI33: =AA26 -> -18.80251377 | AL33: =+R27 -> 28.34710744 | AS33: =S28 -> -16.19834711 | AW33: (ankastrelik momentleri)
O34: =+H33/2 -> 2.875
O35: =-(O34+O33+R33)*O30 -> 3.705882353 | R35: =-(O34+O33+R33)*R30 -> 3.294117647 | Y35: =+R35/2 -> 1.647058824
R36: =+Y36/2 -> 4.408550822 | Y36: =-(Y35+Y33+AB33)*Y30 -> 8.817101643 | AB36: =-(Y35+Y33+AB33)*AB30 -> 9.618656338 | AI36: =+AB36/2 -> 4.809328169
O37: =-R36*O30 -> -2.33393867 | R37: =-R36*R30 -> -2.074612151 | Y37: =+R37/2 -> -1.037306076 | AB37: =+AI37/2 -> -3.588480458 | AI37: =-(AI36+AI33+AL33)*AI30 -> -7.176960916 | AL37: =-(AI36+AI33+AL33)*AL30 -> -7.176960916 | AS37: =+AL37/2 -> -3.588480458
R38: =+Y38/2 -> 1.106166345 | Y38: =-(Y37+AB37)*Y30 -> 2.21233269 | AB38: =-(Y37+AB37)*AB30 -> 2.413453844 | AI38: =+AB38/2 -> 1.206726922
O39: =-R38*O30 -> -0.5856174768 | R39: =-R38*R30 -> -0.5205488683 | Y39: =+R39/2 -> -0.2602744341 | AB39: =+AI39/2 -> -0.3016817305 | AI39: =-AI38*AI30 -> -0.6033634609 | AL39: =-AI38*AL30 -> -0.6033634609 | AS39: =+AL39/2 -> -0.3016817305
R40: =+Y40/2 -> 0.134380822 | Y40: =-(Y39+AB39)*Y30 -> 0.2687616439 | AB40: =-(Y39+AB39)*AB30 -> 0.2931945207 | AI40: =+AB40/2 -> 0.1465972603
O41: =-R40*O30 -> -0.0711427881 | R41: =-R40*R30 -> -0.06323803387 | Y41: =+R41/2 -> -0.03161901693 | AB41: =+AI41/2 -> -0.03664931508 | AI41: =-AI40*AI30 -> -0.07329863017 | AL41: =-AI40*AL30 -> -0.07329863017 | AS41: =+AL41/2 -> -0.03664931508
R42: =+Y42/2 -> 0.01632503592 | Y42: =-(Y41+AB41)*Y30 -> 0.03265007183 | AB42: =-(Y41+AB41)*AB30 -> 0.03561826018 | AI42: =+AB42/2 -> 0.01780913009
O43: =-R42*O30 -> -0.008642666074 | R43: =-R42*R30 -> -0.007682369843 | Y43: =+R43/2 -> -0.003841184922 | AB43: =+AI43/2 -> -0.004452282523 | AI43: =-AI42*AI30 -> -0.008904565046 | AL43: =-AI42*AL30 -> -0.008904565046 | AS43: =+AL43/2 -> -0.004452282523
Y44: =-(Y43+AB43)*Y30 -> 0.003966440952 | AB44: =-(Y43+AB43)*AB30 -> 0.004327026493 | AI44: =+AB44/2 -> 0.002163513246
E45: =SUM(E33:G44) -> -5.75 | H45: =SUM(H33:J44) -> 5.75 | O45: =SUM(O33:Q44) -> -46.41845925 | R45: =SUM(R33:T44) -> 46.41845925 | Y45: =SUM(Y33:AA44) -> -28.4761694 | AB45: =SUM(AB33:AD44) -> 28.4761694 | AI45: =-AI44*AI30 -> -0.001081756623 | AL45: =-AI44*AL30 -> -0.001081756623
AI46: =SUM(AI33:AK45) -> -20.48349811 | AL46: =SUM(AL33:AN45) -> 20.48349811 | AS46: =SUM(AS33:AU45) -> -20.12961089 | AW46: (dengelenmiş momentler)
M47: M (moment diyagramı) (KNm)
I48: =+E45 -> -5.75 | S48: =+O45 -> -46.41845925 | AC48: =+Y45 -> -28.4761694 | AM48: =+AI46 -> -20.48349811 | AW48: =+AS46 -> -20.12961089
I51: - | J51: - | S51: - | T51: - | AC51: - | AD51: - | AM51: - | AN51: - | AW51: -
I52: a | N52: + | S52: b | X52: + | AC52: c | AH52: + | AM52: d | AS52: + | AW52: e
M54: =+N79 -> 25.98317485 | W54: =-(IF(AND((AW83-X6*T11)>0,((AW83-X6*T11)-V5)>0,(((AW83-X6*T11)-V5)-X6*X11)<0,((((AW83-X6*T11)-V5)-X6*X11)-Z5)<0),(R45-(AW83+(AW83-X6*T11))/2*T11-((-((AW83-X6*T11)-V5)*X11/(-((AW83-X6*T11)-V5)--(((AW83-X6*T11)-V5)-X6*X11))+T11)-T11)*((AW83-X6*T11)-V5)/2),IF(AND((AW83-X6*T11)<0,((AW83-X6*T11)-V5)<0,(((AW83-X6*T11)-V5)-X6*X11)<0,((((AW83-X6*T11)-V5)-X6*X11)-Z5)<0),(R45-AW83*(AW83*T11/(AW83-(AW83-X6*T11)))/2),IF(AND((AW83-X6*T11)>0,((AW83-X6*T11)-V5)<0,(((AW83-X6*T11)-V5)-X6*X11)<0,((((AW83-X6*T11)-V5)-X6*X11)-Z5)<0),(R45-(AW83+(AW83-X6*T11))/2*T11),IF(AND((AW83-X6*T11)>0,((AW83-X6*T11)-V5)>0,(((AW83-X6*T11)-V5)-X6*X11)>0,((((AW83-X6*T11)-V5)-X6*X11)-Z5)<0),(R45-(AW83+(AW83-X6*T11))/2-T11-(((AW83-X6*T11)-V5)+(((AW83-X6*T11)-V5)-X6*X11))/2*X11),IF(AND((AW83-X6*T11)>0,((AW83-X6*T11)-V5)>0,(((AW83-X6*T11)-V5)-X6*X11)>0,((((AW83-X6*T11)-V5)-X6*X11)-Z5)>0),(R45-(AW83+(AW83-X6*T11))/2*T11-(((AW83-X6*T11)-V5)+(((AW83-X6*T11)-V5)-X6*X11))/2*X11-((((((AW83-X6*T11)-V5)-X6*X11)-Z5)*AA11/(((((AW83-X6*T11)-V5)-X6*X11)-Z5)+AQ81)+T11+X11)-X11-T11)*((((AW83-X6*T11)-V5)-X6*X11)-Z5)/2),"hatalı")))))) -> 19.17048347 | AH54: =IF(AD5*AE11>AC56,(AC56*(IF(AD5*AE11>AC56,(AC56*AE11)/(AE11*AD5),IF(AND(AD5*AE11<AC56,AH5>AC56-AD5*AE11),AE11,IF(AND(AD5*AE11<AC56,AH5<AC56-AD5*AE11),((AD5-AE11)*(AC56-AD5*AE11-AH5)/(AC56-AD5*AE11-AH5+-AL65))+AE11,"HATALI"))))/2)--AC48,IF(AND(AD5*AE11<AC56,AH5>AC56-AD5*AE11),(((AC56+AC56-AE11*AD5)/2)*AE11)--AC48,IF(AND(AD5*AE11<AC56,AH5<AC56-AD5*AE11),(((AH13-AE11)*(AC56-AD5*AE11-AH5)/(AC56-AD5*AE11-AH5+-AL65))*(AC56-AE11*AD5-AH5)/2+(AC56+AC56-AE11*AD5)*AE11/2)--AC48,"HATALI"))) -> 7.543226642 | AR54: =+AR57*AO11+AM48 -> 24.1906427
S56: =+AW83 -> 39.99038164 | AC56: =+Q101 -> 20.65775842
I57: =+R82 -> 39.83288519 | V57: =+S56-T11*X6 -> 33.99038164 | AH57: =+AC56-AD5*AE11 -> 8.157758416 | AL57: =+AT99 -> 22.3370704 | AR57: =+AL57 -> 22.3370704
L58: V (kesme kuvveti diyagramı) (KN) | W58: =+V57-V5 -> 8.990381642
K59: + | U59: + | AF59: + | AP59: +
I61: a | S61: b | AC61: c | AM61: d | AW61: e
G62: - | R62: - | AB62: - | AK62: - | AU62: -
D63: =-E5 -> -4 | X63: =+W58-X6*X11 -> -3.009618358
S64: =-Y81 -> -60.16711481 | Y64: =+X63-Z5 -> -28.00961836 | AG64: =+AH57-AH5 -> -1.842241584 | AQ64: =+AR57-AR5 -> -12.6629296 | AW64: =-AZ98 -> -12.6629296
I65: =+D63-G6*G11 -> -7.5 | U65: =IF(AND((AW83-X6*T11)>0,((AW83-X6*T11)-V5)>0,(((AW83-X6*T11)-V5)-X6*X11)<0,((((AW83-X6*T11)-V5)-X6*X11)-Z5)<0),(-((AW83-X6*T11)-V5)*X11/(-((AW83-X6*T11)-V5)--(((AW83-X6*T11)-V5)-X6*X11))+T11),IF(AND((AW83-X6*T11)<0,((AW83-X6*T11)-V5)<0,(((AW83-X6*T11)-V5)-X6*X11)<0,((((AW83-X6*T11)-V5)-X6*X11)-Z5)<0),(AW83*T11/(AW83-(AW83-X6*T11))),IF(AND((AW83-X6*T11)>0,((AW83-X6*T11)-V5)<0,(((AW83-X6*T11)-V5)-X6*X11)<0,((((AW83-X6*T11)-V5)-X6*X11)-Z5)<0),T11,IF(AND((AW83-X6*T11)>0,((AW83-X6*T11)-V5)>0,(((AW83-X6*T11)-V5)-X6*X11)>0,((((AW83-X6*T11)-V5)-X6*X11)-Z5)<0),(T11+X11),IF(AND((AW83-X6*T11)>0,((AW83-X6*T11)-V5)>0,(((AW83-X6*T11)-V5)-X6*X11)>0,((((AW83-X6*T11)-V5)-X6*X11)-Z5)>0),(((((AW83-X6*T11)-V5)-X6*X11)-Z5)*AA11/(((((AW83-X6*T11)-V5)-X6*X11)-Z5)+AQ81)+T11+X11),"hatalı"))))) -> 3.74759541 | W65: m | AB65: =-AQ81 -> -34.00961836 | AL65: =-I99 -> -16.84224158
K66: =+U83 -> 1.593315408 | M66: m | AE66: =+AE11 -> 2.5 | AG66: m | AO66: =+AO11 -> 2 | AQ66: m
AN68: b-c çubuğu için
J69: a-b çubuğu için | AO69: P | AT69: P
L70: Pd | AQ70: Pd
F72: Ma | V72: Mb | AJ72: Mb | AZ72: Mc
I73: a | S73: b | AM73: b | AW73: c
H75: A | N75: L | T75: B | AL75: A | AN75: a | AR75: b | AV75: a | AX75: B
C77: açıklık momenti Maç= ( [ (Ma - Mb ) / L + Pd * L * 0.5 ]² / ( 2 * Pd )) - Ma | AR77: L
C78: Maç = ( ( ( | G78: =+H45 -> 5.75 | J78: - | K78: =-O45 -> 46.41845925 | N78: )/ | O78: =+N11 -> 4 | Q78: + | R78: =+M5 -> 25 | T78: * | U78: =+O78 -> 4 | W78: * | X78: 0.5 | Z78: )² / (
E79: 2 | F79: * | G79: =+R78 -> 25 | I79: ))- | J79: =+G78 -> 5.75 | M79: = | N79: =(((G78-K78)/O78+R78*U78*X78)^2/(E79*G79))-J79 -> 25.98317485 | Q79: KNm | AG79: B = ( Mc - Mb + P * a + P * ( a + b ) + Pd * L * L / 2 ) / L
C80: B = ( 0.5 * Pd * L² + Mb - Ma ) / L | AG80: B = ( | AI80: =-Y45 -> 28.4761694 | AK80: - | AL80: =+R45 -> 46.41845925 | AN80: + | AO80: =+V5 -> 25 | AQ80: * | AR80: =+T11 -> 1.5 | AT80: + | AU80: =+AO80 -> 25 | AW80: *( | AX80: =+AR80 -> 1.5 | AZ80: + | BA80: =+X11 -> 3 | BC80: )+ | BD80: =+X6 -> 4 | BF80: * | BG80: =+X13 -> 6 | BI80: *
C81: B = ( | E81: 0.5 | G81: * | H81: =+R78 -> 25 | J81: * | K81: =+O78 -> 4 | M81: ²+ | N81: =+K78 -> 46.41845925 | Q81: - | R81: =+G78 -> 5.75 | U81: )/ | V81: =+O78 -> 4 | X81: = | Y81: =(E81*H81*K81^2+N81-R81)/V81 -> 60.16711481 | AB81: KN | AH81: * | AI81: =+BG80 -> 6 | AK81: / | AL81: 2 | AM81: )/ | AN81: =+BG80 -> 6 | AP81: = | AQ81: =(AI80-AL80+AO80*AR80+AU80*(AX80+BA80)+BD80*BG80*AI81/AL81)/AN81 -> 34.00961836 | AT81: KN
C82: A = Pd * L - B = | H82: =+R78 -> 25 | J82: * | K82: =+O78 -> 4 | M82: - | N82: =+Y81 -> 60.16711481 | Q82: = | R82: =+H82*K82-N82 -> 39.83288519 | U82: KN | AG82: A = 2 * P + Pd * L - B
C83: x= A * L / ( A + B ) = | I83: =+R82 -> 39.83288519 | K83: * | L83: =+O78 -> 4 | N83: /( | O83: =+R82 -> 39.83288519 | Q83: + | R83: =+Y81 -> 60.16711481 | T83: )= | U83: =+I83*L83/(O83+R83) -> 1.593315408 | W83: m | X83: (açıklık mom.yeri) | AG83: A= | AH83: 2 | AI83: * | AJ83: =+AU80 -> 25 | AL83: + | AM83: =+BD80 -> 4 | AO83: * | AP83: =+BG80 -> 6 | AR83: - | AS83: =+AQ81 -> 34.00961836 | AV83: = | AW83: =AH83*AJ83+AM83*AP83-AS83 -> 39.99038164 | AZ83: KN
J86: c-d çubuğu için | AN86: d-e çubuğu için
N87: P | AR87: P
P88: Pd
F90: Mc | V90: Md | AJ90: Md | AZ90: Me
I91: c | S91: d | AM91: d | AW91: e
H93: A | K93: a | Q93: b | T93: B | AL93: A | AO93: a | AU93: b | AX93: B
N95: L | AR95: L
C97: B = ( Md - Mc + P * a + Pd * L * L / 2 ) / L | AI97: B = ( Me - Md + P * a ) / L
C98: B = ( | E98: =-AI46 -> 20.48349811 | G98: - | H98: =+AB45 -> 28.4761694 | J98: + | K98: =+AH5 -> 10 | M98: * | N98: =+AE11 -> 2.5 | P98: + | Q98: =+AD5 -> 5 | S98: * | T98: =+AH13 -> 5.5 | V98: * | W98: =+T98 -> 5.5 | Y98: / | Z98: 2 | AA98: )/ | AI98: B = ( | AK98: =-AS46 -> 20.12961089 | AM98: - | AN98: =+AL46 -> 20.48349811 | AP98: + | AQ98: =+AR5 -> 35 | AS98: * | AT98: =+AO11 -> 2 | AV98: )/ | AW98: =+AR13 -> 5.5 | AY98: = | AZ98: =(AK98-AN98+AQ98*AT98)/AW98 -> 12.6629296 | BC98: KN
E99: )/ | F99: =+W98 -> 5.5 | H99: = | I99: =(E98-H98+K98*N98+Q98*T98*W98/Z98)/F99 -> 16.84224158 | L99: KN | AI99: A = P - B = | AM99: =+AQ98 -> 35 | AO99: - | AP99: =+AZ98 -> 12.6629296 | AS99: = | AT99: =+AM99-AP99 -> 22.3370704 | AW99: KN
C100: A = P + Pd * L - B
C101: A= | D101: =+K98 -> 10 | F101: + | G101: =+Q98 -> 5 | I101: * | J101: =+T98 -> 5.5 | L101: - | M101: =+I99 -> 16.84224158 | P101: = | Q101: =+D101+G101*J101-M101 -> 20.65775842 | T101: KN
B104: CROSS YÖNTEMİ (inş.müh. Gürcan BERBEROĞLU tel:0532 366 02 04 www.betoncelik.com )
K105: E = elastisite modülü | AQ105: Dikkat sadece sarı hücrelere data girilecek.
K106: I = atalet momenti | S106: =IF(OR(G108=0,G108="",Q107=0,Q107="",Y108=0,Y108="",AB107=0,AB107=""),"Konsol hariç tüm yüklere data girmek mecburidir.","") -> 
Q107: 10 | S107: KN | AB107: 5 | AD107: KN | AG107: 4 | AI107: KN/m | AK107: 20 | AM107: KN | AO107: birim deplasman sabitleri | BN107: Not : birim deplasman sabitlerinde çubuk ankastre ise (4 * E * I / L) alınır.Sabit menetli ise (3 * E * I / L) alınır.
G108: 6 | I108: KN/m | Y108: 4 | AA108: KN/m | AO108: a-b çubuğu | AT108: 3 * E * I / L = | AX108: 3 | AY108: * | AZ108: =+G112 -> 1 | BB108: * | BC108: =+G111 -> 1 | BE108: / | BF108: =+H113 -> 4 | BH108: = | BI108: =+AX108*AZ108*BC108/BF108 -> 0.75
AO109: b-c çubuğu | AT109: 4 * E * I / L = | AX109: 4 | AY109: * | AZ109: =+Q112 -> 1 | BB109: * | BC109: =+Q111 -> 1 | BE109: / | BF109: =+R115 -> 6 | BH109: = | BI109: =+AX109*AZ109*BC109/BF109 -> 0.6666666667
AO110: c-d çubuğu | AT110: 3 * E * I / L = | AX110: 3 | AY110: * | AZ110: =+AA112 -> 1 | BB110: * | BC110: =+AA111 -> 1 | BE110: / | BF110: =+AB115 -> 8 | BH110: = | BI110: =+AX110*AZ110*BC110/BF110 -> 0.375
C111: a | F111: I= | G111: 1 | M111: b | P111: I= | Q111: 1 | W111: c | Z111: I= | AA111: 1 | AG111: d | AO111: dağıtma sayıları
F112: E= | G112: 1 | P112: E= | Q112: 1 | Z112: E= | AA112: 1 | AO112: rba = | AQ112: =+BI108 -> 0.75 | AS112: /( | AT112: =+AQ112 -> 0.75 | AV112: + | AW112: =+BI109 -> 0.6666666667 | AY112: )= | AZ112: =AQ112/(AT112+AW112) -> 0.5294117647
H113: 4 | J113: m | O113: 2 | Q113: m | T113: 4 | V113: m | Y113: 4 | AA113: m | AD113: 4 | AF113: m | AI113: 2 | AK113: m | AO113: rbc = | AQ113: =+BI109 -> 0.6666666667 | AS113: /( | AT113: =+AQ113 -> 0.6666666667 | AV113: + | AW113: =+BI108 -> 0.75 | AY113: )= | AZ113: =AQ113/(AT113+AW113) -> 0.4705882353
AO114: rcb = | AQ114: =+BI109 -> 0.6666666667 | AS114: /( | AT114: =+AQ114 -> 0.6666666667 | AV114: + | AW114: =+BI110 -> 0.375 | AY114: )= | AZ114: =AQ114/(AT114+AW114) -> 0.64
R115: =+O113+T113 -> 6 | T115: m | AB115: =+Y113+AD113 -> 8 | AD115: m | AO115: rcd = | AQ115: =+BI110 -> 0.375 | AS115: /( | AT115: =+AQ115 -> 0.375 | AV115: + | AW115: =+BI109 -> 0.6666666667 | AY115: )= | AZ115: =AQ115/(AT115+AW115) -> 0.36
AO116: hiperstatiklik derecesi | BN116: Not: Konsol kiriş hariç tüm açıklıklarda sarı hücrelere data girmek mecburidir.
C117: ankastrelik momentleri | AO117: d= | AP117: 4 | AQ117: adet | AS117: (düğüm noktası sayısı) | BN117: Anormal datalar girmeyiniz.
C118: konsol kiriş | AO118: r= | AP118: 5 | AQ118: adet | AS118: (mesnet tepkisi sayısı)
C119: Mk = | E119: =+AK107 -> 20 | G119: * | H119: =+AI113 -> 2 | J119: + | K119: =+AG107 -> 4 | M119: * | N119: =+AI113 -> 2 | P119: * | Q119: =+AI113 -> 2 | S119: / | T119: 2 | U119: = | V119: =+E119*H119+K119*N119*Q119/T119 -> 48 | Y119: KNm | AO119: ç= | AP119: 3 | AQ119: adet | AS119: (çubuk sayısı)
C120: - Mba = | F120: =-G108 -> -6 | H120: * | I120: =+H113 -> 4 | K120: ²/ | L120: 8 | M120: = | N120: =F120*I120^2/L120 -> -12 | Q120: KNm | AO120: h = 3 * ( ç - d ) + r
C121: Mbc = | E121: =+Q107 -> 10 | G121: * | H121: =+O113 -> 2 | J121: * | K121: =+T113 -> 4 | M121: ²/ | N121: =+R115 -> 6 | P121: ² | Q121: = | R121: =E121*H121*K121^2/N121^2 -> 8.888888889 | U121: KNm | AO121: h= | AP121: 3 | AQ121: *( | AR121: =+AP119 -> 3 | AS121: - | AT121: =+AP117 -> 4 | AU121: )+ | AV121: =+AP118 -> 5 | AW121: = | AX121: =+AP121*(AR121-AT121)+AV121 -> 2 | AY121: (hiperstatiklik derecesi)
C122: - Mcb = | F122: =-Q107 -> -10 | H122: * | I122: =+T113 -> 4 | K122: * | L122: =+O113 -> 2 | N122: ²/ | O122: =+R115 -> 6 | Q122: ² | R122: = | S122: =F122*I122*L122^2/O122^2 -> -4.444444444 | V122: KNm | AO122: =IF(AX121<0,"labil sistem.",IF(AX121=0,"izostatik sistem.","")) -> 
C123: Mcd = | E123: =+Y108 -> 4 | G123: * | H123: =+AB115 -> 8 | J123: ²/ | K123: 8 | L123: + | M123: =+AB107 -> 5 | O123: * | P123: =+Y113 -> 4 | R123: * | S123: =+AD113 -> 4 | U123: *( | V123: =+AD113 -> 4 | X123: + | Y123: =+AB115 -> 8 | AA123: )/( | AB123: 2 | AC123: * | AD123: =+AB115 -> 8 | AF123: ² ) = | AH123: =+E123*H123^2/K123+M123*P123*S123*(V123+Y123)/(AB123*AD123^2) -> 39.5 | AK123: KNm
K125: =+AZ112 -> 0.5294117647 | N125: =+AZ113 -> 0.4705882353 | U125: =+AZ114 -> 0.64 | X125: =+AZ115 -> 0.36
C126: a | M126: b | W126: c | AG126: d
K128: =+N120 -> -12 | N128: =+R121 -> 8.888888889 | U128: =+S122 -> -4.444444444 | X128: =+AH123 -> 39.5 | AE128: =-V119 -> -48 | AH128: =+V119 -> 48 | AK128: (ankastrelik momentleri)
X129: =+AE128/2 -> -24
N130: =+U130/2 -> -3.537777778 | U130: =-(X129+X128+U128)*U125 -> -7.075555556 | X130: =-(X129+X128+U128)*X125 -> -3.98
K131: =-(N130+N128+K128)*K125 -> 3.52 | N131: =-(N130+N128+K128)*N125 -> 3.128888889 | U131: =+N131/2 -> 1.564444444
N132: =+U132/2 -> -0.5006222222 | U132: =-U131*U125 -> -1.001244444 | X132: =-U131*X125 -> -0.5632
K133: =-N132*K125 -> 0.2650352941 | N133: =-N132*N125 -> 0.2355869281 | U133: =+N133/2 -> 0.1177934641
N134: =+U134/2 -> -0.0376939085 | U134: =-U133*U125 -> -0.07538781699 | X134: =-U133*X125 -> -0.04240564706
K135: =-N134*K125 -> 0.01995559862 | N135: =-N134*N125 -> 0.01773830988 | U135: =+N135/2 -> 0.00886915494
U136: =-U135*U125 -> -0.005676259162 | X136: =-U135*X125 -> -0.003192895779
K137: =SUM(K128:M136) -> -8.195009107 | N137: =SUM(N128:P136) -> 8.195009107 | U137: =SUM(U128:W136) -> -10.91120146 | X137: =SUM(X128:Z136) -> 10.91120146 | AE137: =SUM(AE128:AG136) -> -48 | AH137: =SUM(AH128:AJ136) -> 48 | AK137: (dengelenmiş momentler)
AT138: b-c çubuğu için
D139: M (moment diyagramı) (KNm) | AX139: P
L140: =+K137 -> -8.195009107 | V140: =+U137 -> -10.91120146 | AF140: =+AE137 -> -48
AP142: Mb | BF142: Mc
M143: - | N143: - | W143: - | X143: - | AG143: - | AH143: - | AS143: b | BC143: c
C144: a | M144: b | W144: c | AG144: d
H145: + | R145: + | AC145: + | AR145: A | AU145: a | BA145: b | BD145: B
G147: =+V168 -> 8.252277604 | Q147: =L140+Q149*O113 -> 4.232926776 | AA147: =IF(Y108*Y113>V148,(V148*(IF(Y108*Y113>V148,(V148*Y113)/(Y113*Y108),IF(AND(Y108*Y113<V148,AB107>V148-Y108*Y113),Y113,IF(AND(Y108*Y113<V148,AB107<V148-Y108*Y113),((Y108-Y113)*(V148-Y108*Y113-AB107)/(V148-Y108*Y113-AB107+-AF159))+Y113,"HATALI"))))/2)--V140,IF(AND(Y108*Y113<V148,AB107>V148-Y108*Y113),(((V148+V148-Y113*Y108)/2)*Y113)--V140,IF(AND(Y108*Y113<V148,AB107<V148-Y108*Y113),(((AB115-Y113)*(V148-Y108*Y113-AB107)/(V148-Y108*Y113-AB107+-AF159))*(V148-Y113*Y108-AB107)/2+(V148+V148-Y113*Y108)*Y113/2)--V140,"HATALI"))) -> 13.11476458 | AX147: L
V148: =+AY172 -> 13.86390018 | AF148: =+AK149+AI113*AG107 -> 28
C149: =+S171 -> 9.951247723 | L149: =+AZ151 -> 6.213967942 | Q149: =+L149 -> 6.213967942 | AB149: =IF(BE172=1,V148-Y113*Y108,"") ->  | AK149: =+AK107 -> 20 | AO149: B = ( Mc - Mb + P * a ) / L
AB150: =IF(BE172=2,V148-Y108*Y113,"") ->  | AO150: B = ( | AQ150: =-U137 -> 10.91120146 | AS150: - | AT150: =+N137 -> 8.195009107 | AV150: + | AW150: =+Q107 -> 10 | AY150: * | AZ150: =+O113 -> 2 | BB150: )/ | BC150: =+R115 -> 6 | BE150: = | BF150: =(AQ150-AT150+AW150*AZ150)/BC150 -> 3.786032058 | BI150: KN
D151: + | P151: + | Y151: + | AA151: =IF(BE172=1,V148-Y113*Y108-AB107,"") ->  | AI151: + | AO151: A = P - B = | AS151: =+AW150 -> 10 | AU151: - | AV151: =+BF150 -> 3.786032058 | AY151: = | AZ151: =+AS151-AV151 -> 6.213967942 | BC151: KN
C153: a | M153: b | W153: c | AG153: d
L154: - | T154: - | AA154: =IF(BE172=3,+V148-Y108*Y113,"") -> -2.136099818
C155: V (kesme kuvveti diyagramı) (KN) | AA155: =IF(BE172=2,AB150-AB107,"") -> 
Q156: =+Q149-Q107 -> -3.786032058 | W156: =+Q156 -> -3.786032058 | AF156: -
E157: =+O172 -> 1.658541287 | G157: m | L157: =C149-G108*H113 -> -14.04875228 | AA157: =IF(BE172=3,+AA154-AB107,"") -> -7.136099818 | AG157: =IF(BE172=2,V148-Y108*Y113-AB107-Y108*AD113,"") ->  | AR157: c-d çubuğu için
AV158: P
Y159: =IF(Y108*Y113>V148,(V148*Y113)/(Y113*Y108),IF(AND(Y108*Y113<V148,AB107>V148-Y108*Y113),Y113,IF(AND(Y108*Y113<V148,AB107<V148-Y108*Y113),((AB115-Y113)*(V148-Y108*Y113-AB107)/(V148-Y108*Y113-AB107+-AF159))+Y113,"HATALI"))) -> 3.465975046 | AA159: m | AF159: =IF(OR(BE172=3,BE172=1),V148-Y108*Y113-AB107-Y108*AD113,"") -> -23.13609982 | AX159: Pd
K160: a-b çubuğu için
M161: Pd | AN161: Mc | BD161: Md
AQ162: c | BA162: d
W163: Mb
J164: a | T164: b | AP164: A | AS164: a | AY164: b | BB164: B
I166: A | O166: L | U166: B | AV166: L
D168: Maç = Pd * x * x / 2 = | K168: =+I170 -> 6 | M168: * | N168: =+O172 -> 1.658541287 | P168: * | Q168: =+O172 -> 1.658541287 | S168: / | T168: 2 | U168: = | V168: =+K168*N168*Q168/T168 -> 8.252277604 | Y168: KNm | AK168: B = ( Md - Mc + P * a + Pd * L * L / 2 ) / L
D169: B = ( 0.5 * Pd * L² + Mb ) / L | AK169: B = ( | AM169: =-AE137 -> 48 | AO169: - | AP169: =+X137 -> 10.91120146 | AR169: + | AS169: =+AB107 -> 5 | AU169: * | AV169: =+Y113 -> 4 | AX169: + | AY169: =+Y108 -> 4 | BA169: * | BB169: =+AB115 -> 8 | BD169: * | BE169: =+BB169 -> 8 | BG169: / | BH169: 2 | BI169: )/
D170: B = ( | F170: 0.5 | H170: * | I170: =+G108 -> 6 | K170: * | L170: =+H113 -> 4 | N170: ²+ | O170: =-K137 -> 8.195009107 | R170: )/ | S170: =+L170 -> 4 | U170: = | V170: =(F170*I170*L170^2+O170)/S170 -> 14.04875228 | Y170: KN | AM170: )/ | AN170: =+BE169 -> 8 | AP170: = | AQ170: =(AM169-AP169+AS169*AV169+AY169*BB169*BE169/BH169)/AN170 -> 23.13609982 | AT170: KN
D171: A = Pd * L - B = | I171: =+G108 -> 6 | K171: * | L171: =+S170 -> 4 | N171: - | O171: =+V170 -> 14.04875228 | R171: = | S171: =+I171*L171-O171 -> 9.951247723 | V171: KN | AK171: A = P + Pd * L - B
D172: x = A / Pd = | H172: =+S171 -> 9.951247723 | K172: / | L172: =+I171 -> 6 | N172: = | O172: =+H172/L172 -> 1.658541287 | Q172: m | R172: (açıklık mom.yeri) | AK172: A= | AL172: =+AS169 -> 5 | AN172: + | AO172: =+AY169 -> 4 | AQ172: * | AR172: =+BB169 -> 8 | AT172: - | AU172: =+AQ170 -> 23.13609982 | AX172: = | AY172: =+AL172+AO172*AR172-AU172 -> 13.86390018 | BB172: KN | BC172: =AY172-Y108*Y113 -> -2.136099818 | BD172: =AY172-Y108*Y113-AB107 -> -7.136099818 | BE172: =IF(AND(BC172>0,BD172>0),1,IF(AND(BC172>0,BD172<0),2,IF(AND(BC172<0,BD172<0),3,"hatalı"))) -> 3
B175: CROSS YÖNTEMİ (inş.müh. Gürcan BERBEROĞLU tel:0532 366 02 04 www.betoncelik.com )
F176: E = elastisite modülü | AM176: Dikkat sadece sarı hücrelere data girilecek.
F177: I = atalet momenti | M177: =IF(OR(G179=0,G179="",R178=0,R178="",AB178=0,AB178=""),"Tüm yüklere data girmek mecburidir.","") -> 
R178: 60 | T178: KN/m | AB178: 75 | AD178: KN | AK178: birim deplasman sabitleri | BN178: Not : birim deplasman sabitlerinde çubuk ankastre ise (4 * E * I / L) alınır.Sabit menetli ise (3 * E * I / L) alınır.
G179: 50 | I179: KN/m | AK179: a-b çubuğu | AP179: 3 * E * I / L = | AT179: 3 | AU179: * | AV179: =+G183 -> 1 | AX179: * | AY179: =+G182 -> 1 | BA179: / | BB179: =+H184 -> 4 | BD179: = | BE179: =+AT179*AV179*AY179/BB179 -> 0.75
AK180: b-c çubuğu | AP180: 4 * E * I / L = | AT180: 4 | AU180: * | AV180: =+Q183 -> 1 | AX180: * | AY180: =+Q182 -> 1 | BA180: / | BB180: =+R184 -> 4 | BD180: = | BE180: =+AT180*AV180*AY180/BB180 -> 1
AK181: c-d çubuğu | AP181: 3 * E * I / L = | AT181: 3 | AU181: * | AV181: =+AA183 -> 1 | AX181: * | AY181: =+AA182 -> 1 | BA181: / | BB181: =+AB186 -> 4 | BD181: = | BE181: 0.75
C182: a | F182: I= | G182: 1 | M182: b | P182: I= | Q182: 1 | W182: c | Z182: I= | AA182: 1 | AG182: d | AK182: dağıtma sayıları
F183: E= | G183: 1 | P183: E= | Q183: 1 | Z183: E= | AA183: 1 | AK183: rba = | AM183: =+BE179 -> 0.75 | AO183: /( | AP183: =+AM183 -> 0.75 | AR183: + | AS183: =+BE180 -> 1 | AU183: )= | AV183: =AM183/(AP183+AS183) -> 0.4285714286
H184: 4 | J184: m | R184: 4 | T184: m | Y184: 1 | AA184: m | AD184: =+AB186-Y184 -> 3 | AF184: m | AK184: rbc = | AM184: =+BE180 -> 1 | AO184: /( | AP184: =+AM184 -> 1 | AR184: + | AS184: =+BE179 -> 0.75 | AU184: )= | AV184: =AM184/(AP184+AS184) -> 0.5714285714
AK185: rcb = | AM185: =+BE180 -> 1 | AO185: /( | AP185: =+AM185 -> 1 | AR185: + | AS185: =+BE181 -> 0.75 | AU185: )= | AV185: =AM185/(AP185+AS185) -> 0.5714285714
C186: ankastrelik momentleri | AB186: 4 | AD186: m | AK186: rcd = | AM186: =+BE181 -> 0.75 | AO186: /( | AP186: =+AM186 -> 0.75 | AR186: + | AS186: =+BE180 -> 1 | AU186: )= | AV186: =AM186/(AP186+AS186) -> 0.4285714286 | BN186: Tüm sarı hücrelere data girmek mecburidir.
C187: - Mba = | F187: =-G179 -> -50 | H187: * | I187: =+H184 -> 4 | K187: ²/ | L187: 8 | M187: = | N187: =F187*I187^2/L187 -> -100 | Q187: KNm | BN187: Anormal datalar girmeyiniz.
C188: Mbc = - Mcb = | H188: =+R178 -> 60 | J188: * | K188: =+R184 -> 4 | M188: ²/ | N188: 12 | O188: = | P188: =H188*K188^2/N188 -> 80 | S188: KNm | AS188: a-b çubuğu için
C189: Mcd = | F189: =+AB178 -> 75 | H189: * | I189: =+Y184 -> 1 | K189: * | L189: =+AD184 -> 3 | N189: *( | O189: =+AD184 -> 3 | Q189: + | R189: =+AB186 -> 4 | T189: )/( | U189: 2 | V189: * | W189: =+R189 -> 4 | Y189: ²)= | Z189: =+F189*I189*L189*(O189+R189)/(U189*W189^2) -> 49.21875 | AC189: KNm | AU189: Pd
C190: hiperstatiklik derecesi
C191: d= | D191: 4 | E191: adet | G191: (düğüm noktası sayısı) | P191: h = 3 * ( ç - d ) + r | BE191: Mb
C192: r= | D192: 5 | E192: adet | G192: (mesnet tepkisi sayısı) | P192: h= | Q192: 3 | R192: *( | S192: =+D193 -> 3 | T192: - | U192: =+D191 -> 4 | V192: )+ | W192: =+D192 -> 5 | X192: = | Y192: =+Q192*(S192-U192)+W192 -> 2 | Z192: (hiperstatiklik derecesi) | AR192: a | BB192: b
C193: ç= | D193: 3 | E193: adet | G193: (çubuk sayısı) | P193: =IF(Y192<0,"labil sistem.",IF(Y192=0,"izostatik sistem.","")) -> 
AQ194: A | AW194: L | BC194: B
K195: =+AV183 -> 0.4285714286 | N195: =+AV184 -> 0.5714285714 | U195: =+AV185 -> 0.5714285714 | X195: =+AV186 -> 0.4285714286
C196: a | M196: b | W196: c | AG196: d | AL196: Maç = Pd * x * x / 2 = | AS196: =+AQ199 -> 50 | AU196: * | AV196: =+AW200 -> 1.526146575 | AX196: * | AY196: =+AW200 -> 1.526146575 | BA196: / | BB196: 2 | BC196: = | BD196: =+AS196*AV196*AY196/BB196 -> 58.22808424 | BG196: KNm
AL197: B = ( 0.5 * Pd * L² + Mb ) / L
K198: =+N187 -> -100 | N198: =+P188 -> 80 | U198: =-P188 -> -80 | X198: =+Z189 -> 49.21875 | AL198: B = ( | AN198: 0.5 | AP198: * | AQ198: =+G179 -> 50 | AS198: * | AT198: =+H184 -> 4 | AV198: ²+ | AW198: =-K209 -> 94.77068491 | AZ198: )/ | BA198: =+AT198 -> 4 | BC198: = | BD198: =(AN198*AQ198*AT198^2+AW198)/BA198 -> 123.6926712 | BG198: KN
K199: =-(K198+N198)*K195 -> 8.571428571 | N199: =-(K198+N198)*N195 -> 11.42857143 | U199: =+N199/2 -> 5.714285714 | AL199: A = Pd * L - B = | AQ199: =+AQ198 -> 50 | AS199: * | AT199: =+BA198 -> 4 | AV199: - | AW199: =+BD198 -> 123.6926712 | AZ199: = | BA199: =+AQ199*AT199-AW199 -> 76.30732877 | BD199: KN
N200: =+U200/2 -> 7.161989796 | U200: =-(U199+U198+X198)*U195 -> 14.32397959 | X200: =-(U199+U198+X198)*X195 -> 10.74298469 | AL200: x = A / Pd = | AP200: =+BA199 -> 76.30732877 | AS200: / | AT200: =+AQ199 -> 50 | AV200: = | AW200: =+AP200/AT200 -> 1.526146575 | AY200: m | AZ200: (açıklık mom.yeri)
K201: =-N200*K195 -> -3.069424198 | N201: =-N200*N195 -> -4.092565598 | U201: =+N201/2 -> -2.046282799
N202: =+U202/2 -> 0.5846522282 | U202: =-U201*U195 -> 1.169304456 | X202: =-U201*X195 -> 0.8769783424
K203: =-N202*K195 -> -0.2505652407 | N203: =-N202*N195 -> -0.3340869876 | U203: =+N203/2 -> -0.1670434938
N204: =+U204/2 -> 0.04772671251 | U204: =-U203*U195 -> 0.09545342502 | X204: =-U203*X195 -> 0.07159006876 | AQ204: b-c çubuğu için
K205: =-N204*K195 -> -0.02045430536 | N205: =-N204*N195 -> -0.02727240715 | U205: =+N205/2 -> -0.01363620357 | AS205: Pd
N206: =+U206/2 -> 0.003896058164 | U206: =-U205*U195 -> 0.007792116328 | X206: =-U205*X195 -> 0.005844087246
K207: =-N206*K195 -> -0.001669739213 | N207: =-N206*N195 -> -0.002226318951 | U207: =+N207/2 -> -0.001113159475 | AM207: Mb | BC207: Mc
U208: =-U207*U195 -> 0.0006360911288 | X208: =-U207*X195 -> 0.0004770683466 | AP208: b | AZ208: c
K209: =SUM(K198:M208) -> -94.77068491 | N209: =SUM(N198:P208) -> 94.77068491 | U209: =SUM(U198:W208) -> -60.91662426 | X209: =SUM(X198:Z208) -> 60.91662426
AO210: A | AU210: L | BA210: B
L211: =+K209 -> -94.77068491 | V211: =+U209 -> -60.91662426
C212: M (moment diyagramı) (KNm) | AJ212: açıklık momenti Maç= ( [ (Mb - Mc ) / L + Pd * L * 0.5 ]² / ( 2 * Pd )) - Mb
AJ213: Maç = ( ( ( | AN213: =+N209 -> 94.77068491 | AQ213: - | AR213: =-U209 -> 60.91662426 | AU213: )/ | AV213: =+R184 -> 4 | AX213: + | AY213: =+R178 -> 60 | BA213: * | BB213: =+AV213 -> 4 | BD213: * | BE213: 0.5 | BG213: )² / (
M214: - | N214: - | W214: - | X214: - | AL214: 2 | AM214: * | AN214: =+AY213 -> 60 | AP214: ))- | AQ214: =+AN213 -> 94.77068491 | AT214: = | AU214: =(((AN213-AR213)/AV213+AY213*BB213*BE213)^2/(AL214*AN214))-AQ214 -> 42.75327115 | AX214: KNm
C215: a | G215: + | M215: b | R215: + | W215: c | AC215: + | AG215: d | AJ215: B = ( 0.5 * Pd * L² + Mc - Mb ) / L
AJ216: B = ( | AL216: 0.5 | AN216: * | AO216: =+AY213 -> 60 | AQ216: * | AR216: =+AV213 -> 4 | AT216: ²+ | AU216: =+AR213 -> 60.91662426 | AX216: - | AY216: =+AN213 -> 94.77068491 | BB216: )/ | BC216: =+AV213 -> 4 | BE216: = | BF216: =(AL216*AO216*AR216^2+AU216-AY216)/BC216 -> 111.5364848 | BI216: KN
G217: =+BD196 -> 58.22808424 | Q217: =+AU214 -> 42.75327115 | AJ217: A = Pd * L - B = | AO217: =+AY213 -> 60 | AQ217: * | AR217: =+AV213 -> 4 | AT217: - | AU217: =+BF216 -> 111.5364848 | AX217: = | AY217: =+AO217*AR217-AU217 -> 128.4635152 | BB217: KN
AA218: =+V211+V220*Y184 -> 10.5625318 | AJ218: x= A * L / ( A + B ) = | AP218: =+AY217 -> 128.4635152 | AR218: * | AS218: =+AV213 -> 4 | AU218: /( | AV218: =+AY217 -> 128.4635152 | AX218: + | AY218: =+BF216 -> 111.5364848 | BA218: )= | BB218: =+AP218*AS218/(AV218+AY218) -> 2.141058586 | BD218: m | BE218: (açıklık mom.yeri)
C220: =+BA199 -> 76.30732877 | M220: =+AY217 -> 128.4635152 | V220: =+AW233 -> 71.47915607 | AB220: =+V220 -> 71.47915607 | AQ220: c-d çubuğu için
F221: V (kesme kuvveti diyagramı) (KN) | AU221: P
E222: + | N222: + | Z222: +
C224: a | L224: - | M224: b | V224: - | W224: c | AG224: d | AM224: Mc
AE225: - | AP225: c | AZ225: d
L227: =-BD198 -> -123.6926712 | V227: =-BF216 -> -111.5364848 | AA227: =+AB220-AB178 -> -3.520843935 | AF227: =+AA227 -> -3.520843935 | AO227: A | AR227: a | AX227: b | BA227: B
E228: =+AW200 -> 1.526146575 | G228: m | O228: =+BB218 -> 2.141058586 | Q228: m
AU229: L
AL231: B = ( P * a - Mc ) / L
AL232: B = ( | AN232: =+AB178 -> 75 | AP232: * | AQ232: =+Y184 -> 1 | AS232: - | AT232: =+X209 -> 60.91662426 | AV232: )/ | AW232: =+AB186 -> 4 | AY232: = | AZ232: =(AN232*AQ232-AT232)/AW232 -> 3.520843935 | BC232: KN
AL233: A = P - B = | AP233: =+AN232 -> 75 | AR233: - | AS233: =+AZ232 -> 3.520843935 | AV233: = | AW233: =+AP233-AS233 -> 71.47915607 | AZ233: KN
B236: CROSS YÖNTEMİ (inş.müh. Gürcan BERBEROĞLU tel:0532 366 02 04 www.betoncelik.com )
F237: E = elastisite modülü | AL237: Dikkat sadece sarı hücrelere data girilecek.
F238: I = atalet momenti | M238: =IF(OR(H239=0,H239="",R240=0,R240="",AB239=0,AB239=""),"Tüm yüklere data girmek mecburidir.","") -> 
... 2229 more rows
